Cogmind - Beta 13 @@@ ROGUE MODE // 2024.05.01 @ 16:08:42 Player: SlyFyer Result: Destroyed by G-34 Mercenary with Small Laser Performance ------------- Evolutions (0) 0 Regions Visited (2) 400 Robots Destroyed (28) 140 Value Destroyed (533) 533 Prototype IDs (0) 0 Alien Tech Used (0) 0 Bonus (0) 0 TOTAL SCORE: 1073 Bonus ------- None Cogmind --------- Core Integrity 0/250 Matter 289/300 Energy 250/250 System Corruption 1% Temperature Cool (6) Movement Rolling (105) Ox1 Location -10/Mines Parts ------- > --- POWER (1) -------- Ion Engine > --- PROPULSION (2) --- Wheel Compact Wheel > --- UTILITY (2) ------ Large Storage Unit Light Armor Plating > --- WEAPON (2) ------- Spread Laser Light Assault Rifle > --- INVENTORY (15) --- Wheel High-capacity Storage Unit Structural Scanner Visual Processing Unit Seismic Detector Trap Extractor (0/4) Spread Laser Spread Laser Spread Laser Light Cannon Light Cannon Datajack Mining Laser Peak State ------------ > --- POWER ------------ Ion Engine > --- PROPULSION ------- Wheel Compact Wheel > --- UTILITY ---------- Large Storage Unit Structural Scanner > --- WEAPON ----------- Spread Laser Light Assault Rifle > --- INVENTORY -------- Compact Wheel Visual Processing Unit Seismic Detector Light Armor Plating Trap Extractor Spread Laser Light Cannon Light Cannon Datajack Mining Laser [Rating: 9] Favorites ----------- Power Light Ion Engine Engine Light Ion Engine Propulsion Compact Wheel Wheel Compact Wheel Utility Structural Scanner Device Structural Scanner Storage Large Storage Unit Protection Light Armor Plating Weapon Assault Rifle Energy Gun Spread Laser Ballistic Gun Assault Rifle Special Weapon Mining Laser Build | -11 -10 -10 ------- Run | Yrd Mat Min Slots Evolved . | . . . Power . | . . . Propulsion . | . . . Utility . | . . . Weapon . | . . . Parts Attached 24 | 6 16 2 Power 4 | 1 3 . Engine 4 | 1 3 . Core . | . . . Reactor . | . . . Propulsion 4 | 2 1 1 Treads . | . . . Leg . | . . . Wheel 4 | 2 1 1 Hover . | . . . Flight . | . . . Utility 5 | 1 3 1 Device 2 | . 2 . Storage 2 | 1 1 . Processor . | . . . Hackware . | . . . Protection 1 | . . 1 Artifact . | . . . Weapon 11 | 2 9 . Energy Gun 3 | 1 2 . Energy Cannon . | . . . Ballistic Gun 6 | 1 5 . Ballistic Cannon . | . . . Launcher . | . . . Special Weapon 2 | . 2 . Impact Weapon . | . . . Slashing Weapon . | . . . Piercing Weapon . | . . . Special Melee Weapon . | . . . Unidentified Prototypes . | . . . Parts Lost 6 | . 5 1 Power 2 | . 2 . Propulsion 2 | . 1 1 Utility . | . . . Weapon 2 | . 2 . Highest Loss Streak 2 | . 2 1 To Critical Strikes . | . . . Average Slot Usage (%) 97 | . 97 100 Engine 12 | . 11 14 Wheel 27 | . 27 28 Device 13 | . 14 . Storage 14 | . 14 14 Energy Gun 6 | . 5 14 Ballistic Gun 21 | . 22 14 Naked Turns . | . . . Heaviest Build 32 | 11 30 32 Greatest Support 26 | 26 26 26 Greatest Overweight (x) 1 | . 1 1 Average Overweight (x) . | . . 1 Largest Inventory Capacity 15 | 8 15 15 Average Capacity 13 | 7 13 15 Most Carried 15 | 5 15 14 Average Carried 9 | 2 9 13 Final Capacity 15 | 8 15 15 Final Carried 14 | 5 14 13 Class Distribution -------------------- 100% | Mutant Dominant Class ---------------- Mutant | -10/Materials Mutant | -10/Mines Resources | -11 -10 -10 ----------- Run | Yrd Mat Min Matter Collected 744 | 269 460 15 Remotely . | . . . Salvage Created 904 | 125 695 84 Parts 56 | 7 42 7 Haulers Intercepted 2 | . 2 . Recyclers Shooed . | . . . Parts Field Recycled . | . . . Retrieved Matter . | . . . Parts Self-Destructed . | . . . Prevented . | . . . Kills | -11 -10 -10 ------- Run | Yrd Mat Min Combat Hostiles Destroyed 19 | . 15 4 Guns 19 | . 15 4 Classes Destroyed 6 | 2 4 . Tunneler 1 | 1 . . Hauler 2 | . 2 . Recycler 3 | 1 2 . Watcher 3 | . 3 . Swarmer 9 | . 6 3 Grunt 10 | . 9 1 Best Kill Streak 5 | 2 5 3 Combat Bots Only 3 | . 3 3 Max Kills in Single Turn 1 | 1 1 1 Gunslinging . | . . . Exploded . | . . . Melee . | . . . Uniques/NPCs Destroyed . | . . . Combat | -11 -10 -10 -------- Run | Yrd Mat Min Hostile Shots Fired 96 | . 73 23 Missed 36 | . 24 12 Damage Taken 808 | . 707 101 Core 253 | . 196 57 Absorbed by Shields . | . . . Core Remaining (%) 100 | 100 . . Volleys Fired 90 | 3 80 7 Largest 2 | 2 2 2 Hottest 100 | 60 100 85 Shots Fired 171 | 6 151 14 Gun 169 | 6 149 14 Cannon . | . . . Launcher . | . . . Special 2 | . 2 . Kinetic 141 | 3 131 7 Thermal 30 | 3 20 7 Explosive . | . . . Electromagnetic . | . . . Robot Hit Streak 13 | 3 13 7 Robot Miss Streak 23 | 1 16 23 Penetration Max . | . . . Secondary Targets 4 | . 2 2 Max Gunslinging Chain 1 | . 1 1 Shots Hit Robots 103 | 4 89 10 Core Hits 60 | 3 44 13 Critical Kills . | . . . Critical Parts Destroyed 1 | . 1 . Critical Strikes 1 | . 1 . Destroy 1 | . 1 . Melee Attacks . | . . . Impact . | . . . Slashing . | . . . Piercing . | . . . Sneak Attacks . | . . . Combat Hostiles . | . . . Follow-up Attacks . | . . . Damage Inflicted 1256 | 47 1109 100 Guns 1256 | 47 1109 100 Cannons . | . . . Explosions . | . . . Melee . | . . . Ramming . | . . . Kinetic 1067 | 13 1024 30 Thermal 189 | 34 85 70 Explosive . | . . . Electromagnetic . | . . . Impact . | . . . Slashing . | . . . Piercing . | . . . Highest Corruption 1 | . 1 1 Average Corruption 1 | . 1 1 Corruption Purged . | . . . Corruption Blocked . | . . . Effects 4 | . 4 . Message Errors 2 | . 2 . Matter Fused 1 | . 1 . Energy Discharges 1 | . 1 . Overload Shots . | . . . Overflow Damage . | . . . Projectiles . | . . . Explosions . | . . . Melee . | . . . Knockbacks . | . . . Impact . | . . . Kinetic . | . . . Secondary . | . . . Self-Inflicted Damage . | . . . Shots . | . . . Rammed . | . . . Targets Rammed . | . . . Kicked . | . . . Crushed . | . . . Highest Temperature 199 | . 97 199 Average Temperature 39 | . 18 82 Received Heat Transfer 270 | . 255 15 Siege Activations . | . . . Robots Corrupted . | . . . Combat Hostiles . | . . . Parts Fried . | . . . Impact Corruptions . | . . . Robots Melted . | . . . Combat Hostiles . | . . . Parts Melted . | . . . Heat Transferred 315 | 75 155 85 Parts Sabotaged . | . . . Parts Stolen . | . . . Parts Stripped . | . . . Power Chain Reactions . | . . . Alert | -11 -10 -10 ------- Run | Yrd Mat Min Peak Influence 282 | 10 282 158 Initial 53 | . 6 53 Average 140 | 3 151 122 Maximum Alert Level 1 | . 1 . Low Security (%) 79 | 100 76 100 Level 1 20 | . 23 . Level 2 . | . . . Level 3 . | . . . Level 4 . | . . . Level 5 . | . . . High Security . | . . . Max Security . | . . . Squads Dispatched 4 | . 4 . Investigation 3 | . 3 . Extermination . | . . . Reinforcement 1 | . 1 . Assault . | . . . Garrison . | . . . Intercept . | . . . Searches Triggered . | . . . Construction Impeded . | . . . Haulers Reinforced . | . . . Active Scanning Responses . | . . . Cargo Convoy Interrupts . | . . . Stealth | -11 -10 -10 --------- Run | Yrd Mat Min Distress Signals 1 | . 1 . Communications Jammed . | . . . Distress Signals . | . . . Times Spotted 32 | . 26 6 Peak Tracking Total 4 | . 4 3 Tactical Retreats 1 | . . 1 Traps | -11 -10 -10 ------- Run | Yrd Mat Min Traps Triggered 6 | . 6 . Indirectly . | . . . Trap Hack Attempts . | . . . Triggered . | . . . Disarmed . | . . . Reprogrammed . | . . . Reused . | . . . Traps Extracted . | . . . Installed . | . . . Triggered . | . . . Machines | -11 -10 -10 ---------- Run | Yrd Mat Min Machines Disabled . | . . . Max in Single Turn . | . . . Machines Repaired . | . . . Machines Dismantled . | . . . Machines Sabotaged . | . . . Overloaded Fab Kills . | . . . Hacking | -11 -10 -10 --------- Run | Yrd Mat Min Machines Accessed 5 | . 5 . Terminals 3 | . 3 . Fabricators . | . . . Repair Stations 1 | . 1 . Recycling Units 1 | . 1 . Scanalyzers . | . . . Garrison Access . | . . . Total Hacks 13 | . 13 . Successful 6 | . 6 . Failed 7 | . 7 . Catastrophic 2 | . 2 . Database Lockouts . | . . . Manual 10 | . 10 . Terminals 9 | . 9 . Fabricators . | . . . Repair Stations 3 | . 3 . Recycling Units 1 | . 1 . Scanalyzers . | . . . Garrison Access . | . . . Terminal Hacks . | . . . Fabricator Hacks . | . . . Repair Station Hacks 1 | . 1 . Scan Component 1 | . 1 . Recycling Unit Hacks . | . . . Scanalyzer . | . . . Garrison Access Hacks . | . . . Unauthorized Hacks 5 | . 5 . Terminals 4 | . 4 . Assimilate 1 | . 1 . Botnet 2 | . 2 . Operators 1 | . 1 . Fabricators . | . . . Repair Stations . | . . . Recycling Units 1 | . 1 . Tunnel 1 | . 1 . Scanalyzers . | . . . Garrison Access . | . . . Data Cores Recovered . | . . . Used . | . . . Hacking Detections 4 | . 4 . Full Trace Events 1 | . 1 . Feedback Events . | . . . Feedback Blocked . | . . . Robot Schematics Acquired . | . . . Robots Built . | . . . Authchips . | . . . Time . | . . . Total Robot Build Rating . | . . . Part Schematics Acquired . | . . . Parts Built . | . . . Authchips . | . . . Time . | . . . Total Part Build Rating . | . . . Parts Repaired . | . . . Time . | . . . Parts Recycled . | . . . Recycled Matter . | . . . Retrieved Matter . | . . . Retrieved Components . | . . . Parts Scanalyzed . | . . . Part Schematics Acquired . | . . . Parts Damaged . | . . . Bothacking | -11 -10 -10 ------------ Run | Yrd Mat Min Used RIF Installer . | . . . Robots Hacked . | . . . Non-combat . | . . . Combat . | . . . Robot Hacks Applied . | . . . Relay Couplers Released . | . . . Fabnet Peak Effective % . | . . . Robots Rewired . | . . . Allies Hacked . | . . . Hacks Repelled . | . . . Allies | -11 -10 -10 -------- Run | Yrd Mat Min Total Allies . | . . . Largest Group . | . . . Highest-Rated Group . | . . . Highest-Rated Ally . | . . . Total Orders . | . . . Ally Attacks . | . . . Total Damage . | . . . Kills . | . . . Allies Corrupted . | . . . Allies Melted . | . . . Intel | -11 -10 -10 ------- Run | Yrd Mat Min Robot Analysis Total . | . . . Derelict Logs Recovered 1 | . . 1 Drone Launches . | . . . Drone Recoveries . | . . . Exploration | -11 -10 -10 ------------- Run | Yrd Mat Min Turns Passed 1226 | 79 1065 82 Spaces Moved 886 | 70 764 52 Core 22 | 22 . . Treads . | . . . Legs . | . . . Wheels 864 | 48 764 52 Hover . | . . . Flight . | . . . Fastest Speed 50 | 50 90 105 Average Speed 97 | 77 99 105 Slowest Speed 115 | 90 115 105 Overloaded Moves . | . . . Propulsion Burnouts . | . . . Robots Hopped . | . . . Cave-ins Triggered . | . . . Exploration Rate (%) 36 | 4 90 15 Regions Visited 2 Branch Regions 1 Pre-discovered Areas 1 | . 1 . Known Exits Taken . | . . . Unknown Exits Taken 2 | 1 1 . Scrap Searched . | . . . Spaces Dug 2 | . 2 . Terrain Destroyed 2 | . 2 . Melee . | . . . Projectile 2 | . 2 . AOE . | . . . Terrain Rammed . | . . . Walls Destroyed . | . . . Machines Disabled . | . . . Actions | -11 -10 -10 --------- Run | Yrd Mat Min Total 1077 | 88 923 66 Wait 47 | . 42 5 Move 884 | 69 763 52 Hop . | . . . Pick Up 29 | 10 19 . Fast Attach 1 | 1 . . Attach 15 | 5 9 1 Detach . | . . . Swap 8 | . 7 1 Drop 3 | . 3 . Fire 90 | 3 80 7 Melee . | . . . Ram . | . . . Kick . | . . . Crush . | . . . Escape Stasis . | . . . Rewire . | . . . Trap . | . . . Miscellaneous . | . . . Route ------- -11/Scrapyard -10/Materials (discovered 4 exits: [*Mat x3] / [*Min]) -10/Mines History --------- Turn | Location | Event 5 | -11/Scrapyard | Discovered new exit (range 15) 80 | -11/Scrapyard | Entered Materials 324 | -10/Materials | Build established: Mutant 459 | -10/Materials | Discovered new exit (range 16) 609 | -10/Materials | Discovered new exit (range 7) 665 | -10/Materials | Discovered new exit (range 3) 872 | -10/Materials | Core integrity fell below 50% 925 | -10/Materials | Discovered new exit (range 7) 1145 | -10/Materials | Entered Mines 1148 | -10/Mines | Core integrity fell below 20% 1153 | -10/Mines | Met a Derelict bent on vengeance 1227 | -10/Mines | Destroyed by G-34 Mercenary with Small Laser Last Messages --------------- 01071_ System corrupted: Matter fused (-10). 01074_ Acquired Spread Laser. 01126_ Acquired 23 matter. LOCATION=UNKNOWN GOAL=ESCAPE Something is scanning the area. 01150_ S-10 Pest destroyed. 01150_ Switching to secondary target: S-10 Pest. 01155_ S-10 Pest destroyed. 01155_ Switching to secondary target: S-10 Pest. 01158_ S-10 Pest destroyed. 01164_ Acquired 10 matter. 01165_ Acquired 5 matter. 01175_ Acquired derelict log, extracted data. Data stored: Mines entrances (x2). 01185_ K-01 Serf collects debris. 01201_ Com. Wheel destroyed. 01202_ K-01 Serf collects debris. 01203_ G-47 Trooper destroyed. 01205_ K-01 Serf collects debris. Map ----- +----------------------------------------------------+ | ?????????????????????????????????????????????????? | | ?????????????????????????????????????????????????? | | ?????????????????????????????????????????????????? | | ?????????????????????????????????????????????????? | | ?????????????????????????????????????????????????? | | ?????????????????????????????????????????????????? | | ?????????????????????????????????????????????????? | | ?????????????????????????????????????????????????? | | ?????????????????????????????????????????????????? | | ?????????????????????????????????????????????????? | | ?????????????????????????????????????????????????? | | ?????????????????????????????????????????????????? | | ?????????????????????????????????????????????????? | | ?????????????????????????????????????????????????? | | ?????????????????????????????????????????????????? | | ?????????????????????????????????????????????????? | | ?????????????????????????????????????????????????? | | ?????????????????????????????????????????????###?? | | ????????????????????????????????????????????? #### | | ????????????????????????????????????????????? ## | | ?????????????????????????????????????????????? | | ?????????????????????????????????????????????? | | ?????????????????????????????????????????????# | | ?????????????????????????????????????????????## # | | ?????????????????????######??????????????????## # | | ?????????????????????# @#??????????????????## # | | ?????????????????????# #??????????????????## # | | ?????????????????????# g#####??????????????## # | | ?????????????????????# #???############# # | | ?????????????????????# #???# ## # | | ?????????????????????# ## #???# ##### ## ## # | | ?????????????????????####### #???# #???# ## ## # | | ???????????????????????????# ##?## #??? ## # | | ???????????????????????????# ### ##?# ##### | | ???????????????????????????# #? ??## | | ???????????????????????????# =% #?## | | ???????????????????????????# #?##== | | ??????????????????????????# ### %* | | ?????????????????????????# ## ###=% | | ????????????????????????# ##?# #### | | ????????????????????????# #??? #### | | ????????????????????????## #### #??? ? ##??? | | ?????????????????????????####???## #??? ??#???? | | ?????????????????????????????????# ##??? ??????? | | ?????????????????????????????????## ##???? ??????? | | ???????????????????????????????????##????????????? | | ?????????????????????????????????????????????????? | | ?????????????????????????????????????????????????? | | ?????????????????????????????????????????????????? | | ?????????????????????????????????????????????????? | +----------------------------------------------------+ Best States ------------- Heat Dissipation 25 Energy Generation 10 Energy Capacity 250 Matter Stores 300 Matter Capacity 300 Sight Range 16 Terrain Scan Density 10 Armor Coverage 150 Evasion (%) 50 Item Schematics ----------------- None Robot Schematics ------------------ None Fabricated ------------ Nothing Alien Tech Used ----------------- None Achievements -------------- None Challenges ------------ None Game ------ Seed VortexBombardmentShield Manual? 0 Play Time 00:11:54 Cumulative 79.3 hours Start 2024.05.01 @ 15:57:52 End 2024.05.01 @ 16:08:42 Sessions 1 Manual Loads 0 Difficulty Rogue Special Mode None Game No. 37 Rogue 7 Adventurer 30 Explorer 0 Win Type - Total 3 Types 2/1/0/0/0/0/0/0/0 Lore% 49 Gallery% 65 Achievement% 59 Wizard Run 0 Options --------- Layout 0 ASCII 0 Keyboard 0 Movement Mouse Keybinds 0 Fullscreen 1 Font 18/SmallcapsGlow Map View 76x50 Zoom Use 0% Tactical HUD 1 Map Filters NONE Filters NONE Steam 1 RUN: 4f2d89b0-43a8-453e-a90e-f2b977b0b59a